bitfinex/quotes_SOLUSD_20240726
["timestamp","ask_amount","ask_price","bid_price","bid_amount"]
[1721986995828,12.06,179.87,179.77,28.92407991]
[1721986996045,12.06,179.91,179.84,5.5602]
[1721986996046,12.06,179.86,179.84,5.5602]
[1721986996741,12.06,179.86,179.85,5.5601]
[1721986996944,12.06,179.86,179.84,5.5604]
[1721986997336,12.06,179.85,179.82,13.9023]
[1721986997735,12.06,179.85,179.84,5.5604]
[1721986998137,12.06,179.85,179.83,5.5607]
[1721986998342,12.06,179.84,179.83,5.5607]
[1721986999244,12.06,179.85,179.84,5.5604]
[1721986999443,5.5585,179.91,179.86,5.5597]
[1721986999738,12.06,179.87,179.86,5.5597]
[1721987001033,12.06,179.87,179.84,5.5603]
[1721987001234,12.06,179.85,179.83,5.5607]
[1721987001430,5.5593,179.88,179.82,13.9025]
[1721987001431,12.06,179.84,179.82,13.9025]
[1721987001749,12.06,179.83,179.81,5.5613]
[1721987001948,12.06,179.82,179.81,5.5613]
[1721987003348,12.06,179.82,179.8,19.4656]
[1721987003536,12.06,179.81,179.8,19.4656]
[1721987003732,15.1377,179.85,179.82,13.9022]
[1721987004058,12.06,179.83,179.82,19.4633]
[1721987004437,12.06,179.85,179.82,13.9022]
[1721987004749,12.06,179.86,179.85,5.5601]
[1721987004950,12.06,179.86,179.84,5.5604]
[1721987005255,12.06,179.85,179.84,5.5604]
[1721987005558,18.4957,179.88,179.85,5.5601]
[1721987008140,6.4357,179.88,179.86,5.5598]
[1721987008461,12.06,179.89,179.87,5.5595]
[1721987008672,12.06,179.88,179.86,19.4587]
[1721987009263,16.0561,179.9,179.86,19.4587]
[1721987009264,12.1044,179.93,179.86,13.899]
[1721987009470,12.06,179.9,179.88,5.5589]
[1721987009767,12.06,179.89,179.87,5.5595]
[1721987009947,12.06,179.88,179.87,5.5595]
[1721987010457,12.06,179.88,179.86,13.899]
[1721987010670,12.06,179.88,179.86,19.4588]
[1721987010865,12.06,179.88,179.87,5.5595]
[1721987013673,6.5467,179.93,179.88,5.559]
[1721987013874,12.06,179.9,179.89,5.5588]
[1721987014075,12.06,179.92,179.9,5.5584]
[1721987014954,12.06,179.91,179.9,5.5584]
[1721987017681,12.06,179.93,179.92,5.558]
[1721987018379,12.06,179.93,179.91,5.5582]
[1721987018682,12.06,179.92,179.9,19.4547]
[1721987019270,12.06,179.92,179.91,5.5583]
[1721987022764,12.06,179.95,179.94,5.5574]
[1721987023076,15.333,179.98,179.95,5.5568]
[1721987023077,12.06,179.96,179.95,5.5568]
[1721987025185,15.333,179.98,179.95,5.5568]
[1721987025491,12.06,179.96,179.95,5.5568]
[1721987026579,12.06,179.96,179.94,19.4503]
[1721987026796,15.333,179.98,179.94,19.4503]
[1721987026990,12.06,179.96,179.94,19.4503]
[1721987027495,12.06,179.95,179.94,13.893]
[1721987029380,12.06,179.95,179.94,19.4504]
[1721987029881,20.8892,179.98,179.94,19.4504]
[1721987030082,12.06,179.95,179.94,19.4504]
[1721987030393,45.0,179.97,179.95,5.557]
[1721987030602,12.06,179.96,179.95,5.557]
[1721987030903,45.0,179.97,179.95,5.557]
[1721987031069,12.06,179.96,179.95,5.557]
[1721987031265,15.333,179.98,179.94,13.893]
[1721987031572,12.06,179.96,179.95,5.557]
[1721987033195,15.333,179.98,179.95,5.557]
[1721987033392,12.06,179.96,179.94,13.893]
[1721987033694,12.06,179.96,179.95,5.557]
[1721987033993,12.06,179.96,179.94,13.893]
[1721987034178,12.06,179.95,179.93,5.5574]
[1721987034378,12.06,179.94,179.92,5.5579]
[1721987034686,12.06,179.93,179.91,19.4537]
[1721987034870,15.333,179.98,179.91,19.4537]
[1721987035067,50.5567,179.97,179.92,5.558]
[1721987035270,12.06,179.93,179.92,5.558]
[1721987036978,12.06,179.93,179.88,13.8979]
[1721987037192,12.06,179.93,179.91,5.5582]
[1721987037391,12.06,179.93,179.92,5.558]
[1721987038602,45.0,179.97,179.93,13.8937]
[1721987038791,12.06,179.94,179.93,13.8937]
[1721987039726,57.06,179.94,179.91,5.5582]
[1721987040022,12.06,179.92,179.9,13.8965]
[1721987040207,12.06,179.91,179.9,19.4548]
[1721987040512,12.06,179.91,179.89,5.5588]
[1721987040817,5.5574,179.94,179.89,5.5588]
[1721987040818,12.06,179.9,179.89,5.5588]
[1721987041819,12.06,179.91,179.89,5.5588]
[1721987043409,12.06,179.9,179.89,5.5588]
[1721987044311,12.06,179.91,179.89,5.5588]
[1721987044693,12.06,179.9,179.89,5.5588]
[1721987045015,5.5574,179.94,179.89,5.5588]
[1721987045215,12.06,179.91,179.9,5.5586]
[1721987045415,57.06,179.91,179.9,5.5586]
[1721987046113,57.06,179.91,179.89,5.5588]
[1721987046410,12.06,179.9,179.88,19.4566]
[1721987046620,12.06,179.89,179.88,19.4566]
[1721987048024,57.06,179.89,179.88,19.4566]
[1721987048915,57.06,179.89,179.88,13.8974]
[1721987049224,57.06,179.89,179.85,5.5598]
[1721987049404,45.0,179.88,179.86,5.5598]
[1721987049909,45.0,179.89,179.86,5.5598]
[1721987050795,45.0,179.89,179.85,5.5601]
[1721987051002,12.06,179.86,179.85,5.5601]
[1721987053007,12.06,179.87,179.86,5.5596]
[1721987054207,45.0,179.89,179.87,5.5593]
[1721987054408,12.06,179.88,179.87,5.5593]
[1721987056527,16.4295,179.91,179.87,5.5593]
[1721987056823,12.06,179.88,179.87,5.5593]
[1721987060239,12.06,179.88,179.86,19.4589]
[1721987060406,12.06,179.87,179.86,19.4589]
[1721987060606,12.06,179.87,179.86,13.8992]
[1721987061427,45.0,179.9,179.87,5.5595]
[1721987061602,45.0,179.9,179.88,5.5592]
[1721987061805,57.06,179.9,179.88,5.5592]
[1721987062421,12.06,179.9,179.89,5.5589]
[1721987062811,12.06,179.9,179.88,19.4568]
[1721987063127,12.06,179.89,179.88,19.4568]
[1721987065229,12.06,179.9,179.89,5.5589]
[1721987065441,12.06,179.91,179.9,5.5585]
[1721987068335,12.06,179.91,179.89,5.5589]
[1721987068517,12.06,179.9,179.88,19.4569]
[1721987068836,15.3209,179.95,179.88,19.4569]
[1721987068837,12.06,179.89,179.88,19.4569]
[1721987069233,5.5578,179.93,179.89,5.5588]
[1721987069437,12.06,179.9,179.89,5.5588]
[1721987070914,12.06,179.9,179.88,13.8977]
[1721987071245,15.3209,179.95,179.9,13.8961]
[1721987071415,12.06,179.92,179.91,5.5583]
[1721987072212,12.06,179.92,179.9,19.4546]
[1721987072419,12.06,179.91,179.9,13.8961]
[1721987072737,12.06,179.91,179.88,5.5592]
[1721987072919,12.06,179.89,179.88,5.5592]
[1721987076649,12.06,179.89,179.87,19.4581]
[1721987076830,12.06,179.88,179.87,19.4581]
[1721987077146,12.06,179.88,179.87,13.8986]
[1721987077743,12.06,179.88,179.87,19.4581]
[1721987079250,45.0,179.91,179.83,12.06]
[1721987079438,45.0,179.91,179.9,5.5586]
[1721987079634,57.06,179.91,179.89,19.4557]
[1721987079862,12.06,179.9,179.89,19.4557]
[1721987081048,17.6187,179.9,179.86,19.4593]
[1721987081252,50.5583,179.91,179.87,5.5594]
[1721987081449,12.06,179.88,179.87,5.5594]
[1721987081948,12.06,179.88,179.86,19.4593]
[1721987082128,12.06,179.87,179.86,19.4593]
[1721987082442,12.06,179.88,179.86,19.4593]
[1721987084033,12.06,179.87,179.86,19.4593]
[1721987084433,12.06,179.87,179.86,13.8995]
[1721987084650,12.06,179.87,179.86,19.4593]
[1721987084840,12.06,179.87,179.82,13.902]
[1721987085038,12.06,179.85,179.84,5.5602]
[1721987085353,6.5206,179.9,179.84,13.9005]
[1721987085541,12.06,179.87,179.84,13.9005]
[1721987085852,12.06,179.87,179.86,5.5597]
[1721987086725,12.06,179.87,179.85,5.5601]
[1721987087053,5.559,179.89,179.84,19.4609]
[1721987087227,12.06,179.85,179.84,19.4609]
[1721987087428,5.559,179.89,179.85,5.5601]
[1721987087641,12.06,179.86,179.85,5.5601]
[1721987087845,57.06,179.86,179.84,13.9005]
[1721987088051,12.06,179.85,179.84,19.4609]
[1721987089256,12.06,179.85,179.84,18.4609]
[1721987090339,12.06,179.85,179.84,12.9005]
[1721987090642,12.06,179.85,179.82,5.5608]
[1721987090846,12.06,179.83,179.82,5.5608]
[1721987091152,12.06,179.83,179.81,13.9032]
[1721987091353,12.06,179.82,179.81,19.4646]
[1721987093260,12.06,179.84,179.81,13.9032]
[1721987093663,12.06,179.83,179.82,5.561]
[1721987094663,16.3309,179.89,179.83,5.5606]
[1721987094664,12.06,179.84,179.83,5.5606]
[1721987096855,5.5593,179.88,179.83,5.5606]
[1721987097058,12.06,179.85,179.83,5.5606]
[1721987097540,12.06,179.84,179.82,5.561]
[1721987097747,12.06,179.84,179.82,4.561]
[1721987098569,12.06,179.84,179.83,5.5608]
[1721987100967,57.06,179.84,179.82,5.5611]
[1721987101166,12.06,179.84,179.83,5.5608]
[1721987101351,5.5595,179.88,179.81,13.9032]
[1721987101555,12.06,179.85,179.81,13.9032]
[1721987101966,12.06,179.84,179.81,13.9032]
[1721987102170,12.06,179.84,179.82,5.561]
[1721987103673,12.06,179.85,179.83,5.5608]
[1721987103882,12.06,179.85,179.82,5.561]
[1721987104168,12.06,179.85,179.81,13.9032]
[1721987104169,12.06,179.85,179.81,19.4645]
[1721987104342,57.06,179.84,179.81,19.4645]
[1721987105162,12.06,179.83,179.81,19.4645]
[1721987105464,12.06,179.83,179.82,5.5611]
[1721987106357,12.06,179.83,179.81,19.4645]
[1721987107568,12.06,179.82,179.81,19.4645]
[1721987108073,12.06,179.82,179.81,13.9032]
[1721987108370,57.06,179.82,179.81,19.4646]
[1721987108738,57.06,179.82,179.81,13.9032]
[1721987110773,57.06,179.82,179.8,5.5616]
[1721987110949,57.06,179.81,179.79,5.562]
[1721987112048,12.06,179.8,179.79,5.562]
[1721987113269,57.06,179.81,179.8,5.5617]
[1721987114662,57.06,179.81,179.78,13.9054]
[1721987114663,57.06,179.81,179.78,19.4674]
[1721987116075,45.0,179.81,179.79,5.562]
[1721987116379,16.3309,179.89,179.8,12.06]
[1721987116578,16.3309,179.89,179.83,19.4626]
[1721987116579,12.06,179.87,179.83,19.4626]
[1721987117679,6.5206,179.9,179.86,13.8996]
[1721987117856,6.5206,179.9,179.87,5.5595]
[1721987117857,12.06,179.9,179.87,5.5595]
[1721987118189,12.06,179.91,179.87,5.5595]
[1721987118991,17.6184,179.91,179.86,19.4594]
[1721987119283,17.619,179.89,179.85,5.5601]
[1721987119459,17.619,179.89,179.84,12.06]
[1721987119460,17.619,179.89,179.84,5.5604]
[1721987119661,12.06,179.86,179.81,5.5611]
[1721987119974,45.0,179.85,179.81,5.5611]
[1721987120278,12.06,179.84,179.81,5.5611]
[1721987121359,45.0,179.85,179.81,5.5611]
[1721987121585,12.06,179.84,179.81,5.5611]
[1721987121979,12.06,179.85,179.81,5.5611]
[1721987122358,12.06,179.85,179.82,5.561]
[1721987122696,12.06,179.85,179.83,5.5607]
[1721987122994,57.06,179.86,179.83,5.5607]
[1721987123360,12.06,179.9,179.86,5.5598]
[1721987124284,12.06,179.91,179.86,12.06]
[1721987124594,12.0389,179.92,179.87,5.5593]
[1721987124783,12.06,179.91,179.87,5.5593]
[1721987125158,21.2733,179.93,179.89,5.5588]
[1721987125365,6.0287,179.96,179.88,13.17172326]
[1721987125583,12.06,179.93,179.88,12.06]
[1721987125788,17.6181,179.92,179.87,13.8984]
[1721987125986,12.06,179.92,179.88,5.5591]
[1721987126169,12.06,179.92,179.89,5.5586]
[1721987126486,12.06,179.93,179.89,5.5586]
[1721987126687,5.5574,179.94,179.89,5.5586]
[1721987126894,5.5571,179.95,179.9,5.5586]
[1721987127095,5.5571,179.95,179.91,5.5582]
[1721987127268,100.35,180.0,179.93,12.06]
[1721987127472,12.06,179.99,179.95,5.557]
[1721987127671,12.06,179.99,179.96,5.5566]
[1721987128271,12.06,179.97,179.92,5.5578]
[1721987128585,12.06,179.95,179.91,19.4532]
[1721987129594,17.6171,179.95,179.91,13.895]
[1721987129774,45.0,179.94,179.91,13.895]
[1721987130174,45.0,179.94,179.91,19.4533]
[1721987131292,57.06,179.95,179.91,19.4533]
[1721987132426,45.0,179.95,179.91,19.4533]
[1721987138005,50.5571,179.95,179.91,19.4533]
[1721987138201,12.06,179.92,179.89,5.5588]
[1721987138404,12.06,179.91,179.88,13.8979]
[1721987138782,12.06,179.92,179.88,13.8979]
[1721987139293,12.06,179.92,179.91,5.5583]
[1721987140187,45.0,179.95,179.91,5.5583]
[1721987140386,12.06,179.93,179.91,5.5583]
[1721987140606,12.06,179.93,179.92,5.558]
[1721987140780,12.06,179.93,179.9,13.8961]
[1721987140983,12.06,179.92,179.85,27.7994]
[1721987141287,45.0,179.95,179.87,13.8987]
[1721987141288,12.06,179.9,179.87,13.8987]
[1721987141811,12.06,179.9,179.88,5.5591]
[1721987141981,12.06,179.89,179.87,19.4582]
[1721987142303,12.06,179.9,179.88,5.5592]
[1721987142499,12.06,179.89,179.86,5.5596]
[1721987142804,12.06,179.89,179.87,5.5592]
[1721987143785,12.06,179.89,179.86,19.4587]
[1721987144190,12.06,179.89,179.87,5.5595]
[1721987144919,12.06,179.88,179.86,13.899]
[1721987145287,12.06,179.87,179.86,13.899]
[1721987146197,12.06,179.87,179.85,5.5601]
[1721987146384,12.06,179.86,179.83,13.9016]
[1721987146590,12.06,179.88,179.85,5.5599]
[1721987147303,12.06,179.88,179.86,5.5597]
[1721987148812,12.06,179.89,179.86,5.5597]
[1721987149390,12.06,179.9,179.86,5.5597]
[1721987149612,45.0,179.89,179.86,5.5597]
[1721987149813,57.06,179.89,179.83,13.9016]
[1721987150013,57.06,179.89,179.85,5.5599]
[1721987150313,57.06,179.89,179.86,5.5598]
[1721987150811,45.0,179.89,179.86,5.5598]
[1721987151015,57.06,179.9,179.86,5.5598]
[1721987151319,45.0,179.9,179.87,5.5594]
[1721987152106,57.06,179.9,179.87,5.5594]
[1721987152298,12.06,179.89,179.85,19.4597]
[1721987153623,12.06,179.89,179.86,5.5598]
[1721987153913,57.06,179.9,179.86,5.5598]
[1721987155219,57.06,179.9,179.87,5.5595]
[1721987156505,57.06,179.9,179.86,5.5598]
[1721987158614,12.06,179.93,179.88,13.8979]
[1721987158800,18.4761,179.95,179.89,12.06]
[1721987159000,16.3695,179.96,179.91,12.06]
[1721987159194,28.4295,179.96,179.91,12.06]
[1721987159721,28.4295,179.96,179.91,13.17156352]
[1721987160116,28.4295,179.96,179.92,5.5577]
[1721987160319,6.4154,179.99,179.94,5.5571]
[1721987160615,24.0313,179.99,179.93,12.06]
[1721987160824,24.0313,179.99,179.94,5.5573]
[1721987161203,5.5562,179.98,179.94,5.5573]
[1721987161515,17.6169,179.96,179.92,13.8943]
[1721987162424,17.6169,179.96,179.92,19.4522]
[1721987163423,12.06,179.96,179.92,19.4522]
[1721987163731,6.4154,179.99,179.93,12.06]
[1721987163732,12.06,179.98,179.93,12.06]
[1721987163924,57.06,179.98,179.94,5.5571]
[1721987165025,62.6162,179.98,179.94,5.5571]
[1721987165226,62.6162,179.98,179.93,17.6176]
[1721987166119,116.5,180.0,179.94,15.00428766]
[1721987166321,12.06,179.99,179.94,15.00428766]
[1721987166498,12.06,179.99,179.95,5.557]
[1721987167098,12.06,179.99,179.96,5.5566]
[1721987167301,100.35,180.0,179.97,12.06]
[1721987167523,100.35,180.0,179.99,5.5558]
[1721987169106,100.35,180.0,179.98,19.446]
[1721987170533,100.35,180.0,179.98,13.8899]
[1721987172233,100.35,180.0,179.98,19.446]
[1721987174031,100.35,180.0,179.96,17.6167]
[1721987174213,100.35,180.0,179.96,5.5567]
[1721987174214,117.9656,180.0,179.96,5.5567]
[1721987174416,117.9656,180.0,179.95,25.9524]
[1721987174637,112.41,180.0,179.96,5.5565]
[1721987176016,117.9656,180.0,179.96,5.5565]
[1721987176228,117.9656,180.0,179.92,13.8948]
[1721987176229,12.06,179.97,179.92,13.8948]
[1721987176424,12.06,179.94,179.92,19.4527]
[1721987176921,5.5567,179.97,179.92,19.4527]
[1721987177127,5.5567,179.97,179.93,5.5576]
[1721987177335,12.06,179.95,179.92,19.4527]
[1721987177637,100.35,180.0,179.94,13.893]
[1721987177930,12.06,179.97,179.94,19.4501]
[1721987179122,50.5559,179.99,179.94,19.4501]
[1721987179327,12.06,179.97,179.95,5.5569]
[1721987180640,100.35,180.0,179.94,12.06]
[1721987180932,112.41,180.0,179.99,5.5558]
[1721987181112,112.41,180.0,179.98,19.4461]
[1721987182419,112.41,180.0,179.99,17.6158]
[1721987182420,100.35,180.0,179.99,17.6158]
[1721987182937,100.35,180.0,179.99,5.5558]
[1721987183136,100.35,180.0,179.99,17.6158]
[1721987183430,112.41,180.0,179.98,13.89]
[1721987183734,12.06,179.99,179.98,13.89]
[1721987184437,12.06,179.99,179.93,27.7879]
[1721987184438,12.06,179.99,179.95,13.8925]
[1721987184739,12.06,179.99,179.96,5.5564]
[1721987184952,112.41,180.0,179.96,5.5564]
[1721987185136,100.35,180.0,179.99,17.6158]
[1721987185331,100.35,180.0,179.99,37.6158]
[1721987186035,100.35,180.0,179.99,17.6158]
[1721987186213,100.35,180.0,179.99,5.5558]
[1721987186817,100.35,180.0,179.99,17.6158]
[1721987188241,100.35,180.0,179.99,37.6158]
[1721987189343,100.35,180.0,179.99,49.6758]
[1721987190248,95.1438,180.0,179.99,49.6758]
[1721987190431,82.1423,180.0,179.99,130.8558]
[1721987190749,68.9077,180.0,179.99,85.8558]
[1721987190945,68.9077,180.0,179.99,130.8558]
[1721987191329,68.9077,180.0,179.99,85.8558]
[1721987191741,68.9077,180.0,179.99,37.6158]
[1721987192323,68.9077,180.0,179.99,17.6158]
[1721987193560,68.9077,180.0,179.99,5.5558]
[1721987194222,68.9077,180.0,179.98,13.8902]
[1721987194557,80.9677,180.0,179.98,13.8902]
[1721987195129,68.9077,180.0,179.98,13.8902]
[1721987195544,80.9677,180.0,179.98,13.8902]
[1721987195754,79.7155,179.99,179.94,12.06]
[1721987195935,67.6555,179.99,179.95,12.06]
[1721987201757,67.6555,179.99,179.96,12.06]
[1721987203845,67.6555,179.99,179.95,12.06]
[1721987204739,67.6555,179.99,179.91,48.24]
[1721987204947,67.6555,179.99,179.94,12.06]
[1721987205546,67.6555,179.99,179.95,12.06]
[1721987209155,79.7155,179.99,179.94,12.06]
[1721987209539,45.0,179.99,179.98,12.06]
[1721987210037,45.0,179.99,179.88,1.1114706]
[1721987210270,12.06,179.97,179.84,1.11158234]
[1721987210450,57.06,179.96,179.9,12.06]
[1721987210772,45.0,179.96,179.92,12.06]
[1721987210941,45.0,179.97,179.93,12.06]
[1721987211543,22.579,179.98,179.94,12.06]
[1721987213176,22.579,179.98,179.95,12.06]
[1721987215275,22.579,179.98,179.94,12.06]
[1721987216045,16.2825,179.98,179.94,12.06]
[1721987217165,68.9077,180.0,179.97,12.06]
[1721987217362,68.9077,180.0,179.95,1.1114462]
[1721987217363,68.9077,180.0,179.99,12.06]
[1721987217539,68.9077,180.0,179.99,32.06]
[1721987220671,68.9077,180.0,179.99,12.06]
[1721987223147,68.9077,180.0,179.92,15.6952]
[1721987223369,68.9077,180.0,179.99,12.06]
[1721987224850,68.9077,180.0,179.92,15.6952]
[1721987225061,68.9077,180.0,179.99,12.06]
[1721987225770,68.9077,180.0,179.92,15.6952]
[1721987225973,68.9077,180.0,179.93,20.0]
[1721987226164,68.9077,180.0,179.96,12.06]
[1721987226561,68.9077,180.0,179.97,12.06]
[1721987227273,68.9077,180.0,179.98,12.06]
[1721987228660,68.9077,180.0,179.97,12.06]
[1721987229765,68.9077,180.0,179.93,20.0]
[1721987229983,68.9077,180.0,179.96,12.06]
[1721987230366,68.9077,180.0,179.88,2.07885623]
[1721987230570,68.9077,180.0,179.95,12.06]
[1721987230969,6.1344,179.99,179.92,1.11135927]
[1721987231160,6.1344,179.99,179.94,12.06]
[1721987231893,6.1344,179.99,179.95,12.06]
[1721987232386,6.1344,179.99,179.94,12.06]
[1721987232689,45.0,179.98,179.94,12.06]
[1721987232864,57.06,179.98,179.92,12.06]
[1721987233885,57.06,179.98,179.93,12.06]
[1721987234089,45.0,179.98,179.93,12.06]
[1721987234288,57.06,179.98,179.92,12.06]
[1721987237498,45.0,179.98,179.94,12.06]
[1721987237666,6.1344,179.99,179.94,12.06]
[1721987237667,18.1944,179.99,179.94,12.06]
[1721987237866,6.1344,179.99,179.94,12.06]
[1721987238082,18.1944,179.99,179.93,12.06]
[1721987238589,6.1344,179.99,179.93,12.06]
[1721987238768,18.1944,179.99,179.93,12.06]
[1721987238971,12.06,179.98,179.92,12.06]
[1721987239281,12.06,179.97,179.86,2.07951605]
[1721987239481,57.06,179.97,179.91,12.06]
[1721987240977,12.06,179.96,179.91,12.06]
[1721987241179,12.06,179.96,179.86,0.96809789]
[1721987241490,27.2508,179.95,179.89,12.06]
[1721987242773,15.1908,179.95,179.9,12.06]
[1721987243695,15.1908,179.95,179.91,12.06]
[1721987244882,15.1908,179.95,179.92,12.06]
[1721987247896,15.1908,179.95,179.91,12.06]
[1721987248087,15.1908,179.95,179.9,12.06]
[1721987248394,15.1908,179.95,179.86,0.96809789]
[1721987248395,27.2508,179.95,179.89,12.06]
[1721987249294,15.1908,179.95,179.9,12.06]
[1721987249497,20.7479,179.95,179.9,12.06]
[1721987249688,15.1908,179.95,179.9,12.06]
[1721987257009,15.1908,179.95,179.91,12.06]
[1721987257192,15.1908,179.95,179.92,12.06]
[1721987260796,15.1908,179.95,179.86,2.07956008]
[1721987261017,15.1908,179.95,179.92,12.06]
[1721987262020,21.2482,179.99,179.94,12.06]
[1721987262196,15.1138,179.99,179.97,12.06]
[1721987262401,15.1138,179.99,179.96,12.06]
[1721987263696,15.1138,179.99,179.9,1.11114804]
[1721987263913,15.1138,179.99,179.96,12.06]
[1721987264610,15.1138,179.99,179.91,1.11114485]
[1721987264832,15.1138,179.99,179.95,12.06]
[1721987265036,15.1138,179.99,179.96,12.06]
[1721987266229,15.1138,179.99,179.95,12.06]
[1721987266631,15.1138,179.99,179.94,12.06]
[1721987267021,15.1138,179.99,179.91,1.11114485]
[1721987267216,15.1138,179.99,179.94,12.06]
[1721987267563,80.9677,180.0,179.96,12.06]
[1721987267564,68.9077,180.0,179.96,12.06]
[1721987267734,68.9077,180.0,179.97,12.06]
[1721987268526,68.9077,180.0,179.91,49.35114485]
[1721987268730,68.9077,180.0,179.92,20.0]
[1721987269729,68.9077,180.0,179.93,1.11113733]
[1721987270038,68.9077,180.0,179.95,12.06]
[1721987270223,68.9077,180.0,179.96,12.06]
[1721987274136,68.9077,180.0,179.95,12.06]
[1721987274328,80.9677,180.0,179.92,21.11112278]
[1721987274642,80.9677,180.0,179.94,12.06]
[1721987274847,68.9077,180.0,179.95,32.06]
[1721987275438,68.9077,180.0,179.96,1.11122127]
[1721987276026,80.9677,180.0,179.94,12.06]
[1721987276218,12.06,179.99,179.94,12.06]
[1721987277143,80.9677,180.0,179.94,12.06]
[1721987277448,68.9077,180.0,179.96,12.06]
[1721987277653,68.9077,180.0,179.97,12.06]
[1721987278024,68.9077,180.0,179.98,12.06]
[1721987284048,68.9077,180.0,179.97,12.06]
[1721987284445,68.9077,180.0,179.96,12.06]
[1721987287567,68.9077,180.0,179.91,49.3511464]
[1721987287870,68.9077,180.0,179.89,0.9662289]
[1721987287871,68.9077,180.0,179.95,12.06]
[1721987288246,80.9677,180.0,179.94,12.06]
[1721987288568,68.9077,180.0,179.93,1.11122792]
[1721987288748,80.9677,180.0,179.94,12.06]
[1721987289162,68.9077,180.0,179.96,12.06]
[1721987291670,68.9077,180.0,179.97,12.06]
[1721987292465,68.9077,180.0,179.98,12.06]
[1721987292970,68.9077,180.0,179.99,12.06]
[1721987293467,68.9077,180.0,179.98,12.06]
[1721987293638,68.9077,180.0,179.96,12.06]
[1721987294463,68.9077,180.0,179.98,12.06]
[1721987294670,68.9077,180.0,179.99,12.06]
[1721987295250,68.9077,180.0,179.99,32.06]
[1721987295761,67.1093,180.0,179.99,32.06]
[1721987296469,66.9173,180.0,179.99,32.06]
[1721987301165,66.9173,180.0,179.99,44.12]
[1721987301365,66.9173,180.0,179.99,89.12]
[1721987302269,66.9173,180.0,179.99,141.0403]
[1721987303671,66.9173,180.0,179.99,131.7104]
[1721987303672,50.5555,180.0,179.99,131.7104]
[1721987303871,0.8071103,180.07,179.99,131.7104]
[1721987304171,0.8071103,180.07,180.06,12.06]
[1721987304382,0.8071103,180.07,180.06,32.06]
[1721987308390,0.8071103,180.07,180.06,20.0]
[1721987308580,0.8071103,180.07,180.06,21.11053216]
[1721987308902,0.8071103,180.07,180.06,20.0]
[1721987309279,0.8071103,180.07,180.05,12.06]
[1721987309479,0.8071103,180.07,180.06,20.0]
[1721987309679,0.8071103,180.07,180.06,21.11055461]
[1721987309897,0.8071103,180.07,180.06,32.06]
[1721987313401,0.8071103,180.07,180.06,77.06]
[1721987315196,16.0606,180.19,180.06,77.06]
[1721987315396,16.0606,180.19,180.13,12.06]